bitfinex/quotes_ETHUSD_20241108
["timestamp","ask_amount","ask_price","bid_price","bid_amount"]
[1731084655977,0.8238,2912.8,2911.5,0.35831049]
[1731084656268,0.8238,2912.8,2911.1,0.775]
[1731084656938,0.8238,2912.8,2911.4,0.01]
[1731084657666,0.8238,2912.8,2911.5,1.66866794]
[1731084658227,0.09583362,2912.7,2911.5,1.66866794]
[1731084658434,0.09583362,2912.7,2911.1,0.775]
[1731084658636,0.09583362,2912.7,2911.2,1.66866794]
[1731084659346,0.09583362,2912.7,2911.4,0.01]
[1731084659553,0.09583362,2912.7,2911.5,1.66866794]
[1731084660143,0.09583362,2912.7,2911.2,0.55]
[1731084660533,0.09583362,2912.7,2911.3,3.0]
[1731084660731,0.09583362,2912.7,2911.1,0.785]
[1731084661078,4.45813486,2912.7,2911.1,2.12949788]
[1731084661397,0.52819349,2912.6,2911.1,2.13949788]
[1731084661529,0.08584236,2912.5,2911.1,2.13949788]
[1731084661980,0.52819349,2912.6,2911.2,1.90449788]
[1731084662274,0.08583884,2912.5,2911.2,1.35449788]
[1731084662436,0.09584069,2912.7,2911.1,0.785]
[1731084662637,0.01,2912.5,2911.1,0.775]
[1731084663251,0.01,2912.5,2910.7,0.8074]
[1731084663468,0.01,2912.3,2910.8,0.01]
[1731084663652,0.01,2912.3,2910.9,0.01]
[1731084663854,0.01,2912.3,2910.7,0.8074]
[1731084664164,0.7674,2912.2,2910.4,0.01]
[1731084664339,0.09585061,2912.1,2910.2,7.43]
[1731084664542,0.01,2911.9,2910.2,7.42]
[1731084664846,0.01,2911.7,2910.1,1.41305626]
[1731084665048,4.36230124,2911.4,2910.1,1.41305626]
[1731084665443,0.38425,2911.6,2910.1,1.41305626]
[1731084666146,0.09586839,2911.7,2910.2,0.55]
[1731084668390,0.7758,2911.4,2910.1,0.64135626]
[1731084669196,0.7758,2911.4,2910.2,0.55]
[1731084669789,0.7758,2911.4,2910.1,0.65135626]
[1731084669790,0.7758,2911.4,2910.4,0.55]
[1731084670007,0.7758,2911.4,2910.2,0.55]
[1731084670703,0.7758,2911.4,2910.2,3.55]
[1731084671028,0.7758,2911.4,2910.3,0.06869614]
[1731084671199,0.7758,2911.4,2910.4,0.55]
[1731084671392,0.7758,2911.4,2910.5,0.06868033]
[1731084671599,0.7758,2911.4,2910.4,0.55]
[1731084671600,0.7758,2911.4,2910.3,0.01]
[1731084672111,0.7964,2912.0,2910.6,0.01]
[1731084673887,0.7964,2912.0,2910.5,0.55]
[1731084674091,1.32185615,2912.0,2910.5,0.55]
[1731084674379,0.7964,2912.0,2910.5,0.55]
[1731084675285,0.7964,2912.0,2910.7,0.56]
[1731084675877,0.7964,2912.0,2910.7,0.01]
[1731084676615,0.7964,2912.0,2910.8,0.01]
[1731084677312,0.7964,2912.0,2910.6,0.6982968]
[1731084677691,0.7964,2912.0,2910.8,0.01]
[1731084678927,0.7964,2912.0,2910.6,0.6982968]
[1731084679225,0.7964,2912.0,2910.8,0.01]
[1731084680529,0.7964,2912.0,2910.6,0.6982968]
[1731084681227,0.7746,2912.4,2911.1,0.55]
[1731084681382,0.7746,2912.4,2911.4,0.55]
[1731084682611,0.7746,2912.4,2911.4,3.55]
[1731084682835,0.7746,2912.4,2911.4,4.3768]
[1731084683347,0.7746,2912.4,2911.4,5.73791332]
[1731084683507,0.7746,2912.4,2911.6,0.55]
[1731084683711,0.7746,2912.4,2911.7,0.0686095]
[1731084683939,0.7746,2912.4,2911.6,0.55]
[1731084691324,0.7746,2912.4,2911.1,3.01]
[1731084691325,0.7746,2912.4,2911.2,0.55]
[1731084691984,0.7746,2912.4,2911.2,0.56]
[1731084692851,0.7746,2912.4,2911.2,0.55]
[1731084694034,0.7746,2912.4,2911.3,3.0]
[1731084694240,0.7746,2912.4,2911.4,0.55]
[1731084694662,0.7746,2912.4,2911.2,0.56]
[1731084695924,0.7746,2912.4,2911.4,0.55]
[1731084696444,0.7746,2912.4,2911.2,0.55]
[1731084696633,0.7746,2912.4,2911.2,0.56]
[1731084697773,0.7746,2912.4,2911.2,0.55]
[1731084702684,0.7746,2912.4,2911.2,0.56]
[1731084704175,0.7746,2912.4,2911.3,3.611]
[1731084704378,0.7746,2912.4,2911.2,0.56]
[1731084704550,0.7746,2912.4,2911.6,3.55]
[1731084704740,0.7746,2912.4,2911.6,4.3445]
[1731084704947,0.8259,2913.6,2911.6,4.90854359]
[1731084705146,0.91171232,2913.5,2911.6,4.90854359]
[1731084705348,0.91171232,2913.5,2912.0,3.55]
[1731084706645,0.8259,2913.5,2912.4,3.55]
[1731084707578,0.8259,2913.5,2913.2,3.55]
[1731084707954,0.8259,2913.5,2913.3,0.0685153]
[1731084708154,14.05027101,2915.3,2913.4,0.55]
[1731084708155,0.7682,2914.6,2913.4,0.55]
[1731084708355,0.7682,2914.6,2913.7,0.55]
[1731084709479,0.7682,2914.6,2913.7,3.55]
[1731084710498,0.7605,2915.5,2914.4,4.06947101]
[1731084710696,0.7605,2915.5,2914.5,0.61840792]
[1731084710990,0.7605,2915.5,2914.9,3.55]
[1731084713727,0.01,2916.4,2914.9,3.55]
[1731084713728,0.7775,2916.3,2914.9,3.55]
[1731084714205,0.01,2916.4,2914.9,3.55]
[1731084714206,0.7775,2916.1,2914.9,3.55]
[1731084714771,0.7875,2916.1,2914.9,3.55]
[1731084715289,0.7875,2916.1,2914.9,0.55]
[1731084715603,0.7875,2916.1,2914.5,3.0]
[1731084715604,0.7775,2915.8,2914.5,3.0]
[1731084716814,0.01,2915.9,2914.1,3.0]
[1731084716815,0.8268,2915.5,2914.1,3.0]
[1731084717025,0.91255642,2915.4,2914.0,4.06947101]
[1731084717572,0.92255642,2915.4,2914.0,4.06947101]
[1731084717994,0.01,2915.2,2914.0,4.06947101]
[1731084718195,0.8309,2915.1,2913.9,0.14789286]
[1731084718509,0.8309,2915.1,2913.6,4.83587101]
[1731084718721,0.8309,2914.8,2913.2,4.83587101]
[1731084719198,0.8309,2914.8,2913.2,4.06947101]
[1731084719397,0.8309,2914.8,2913.3,0.06847335]
[1731084719576,0.8309,2914.8,2913.6,4.84047101]
[1731084719777,0.8309,2914.8,2913.7,0.06844532]
[1731084720283,0.8309,2914.8,2913.7,0.56]
[1731084720481,0.8309,2914.8,2913.7,3.56]
[1731084720906,0.8309,2914.8,2914.2,0.55]
[1731084721085,0.8309,2914.8,2914.3,0.06842534]
[1731084721499,0.8309,2914.8,2914.4,0.61842811]
[1731084721809,0.8005,2915.7,2914.2,0.55]
[1731084722375,0.8005,2915.7,2914.5,3.55]
[1731084723203,0.8005,2915.7,2914.8,4.06947101]
[1731084723403,0.8005,2915.7,2915.2,4.06947101]
[1731084723715,0.8005,2915.7,2915.3,3.61835529]
[1731084723923,0.8237,2916.5,2915.3,3.61835529]
[1731084724505,0.8237,2916.5,2915.7,3.55]
[1731084724719,0.8237,2916.5,2915.9,0.55]
[1731084724997,0.8237,2916.5,2916.0,0.06831879]
[1731084725203,0.8237,2916.5,2915.8,0.55]
[1731084728433,0.048438,2916.6,2916.5,3.55]
[1731084728590,0.048438,2916.6,2916.5,3.61825679]
[1731084728787,0.048438,2916.6,2916.5,3.55]
[1731084729513,0.048438,2916.6,2916.5,3.61824729]
[1731084729725,0.048438,2916.6,2916.5,4.41584729]
[1731084730230,0.048438,2916.6,2916.5,4.91164359]
[1731084730395,0.048438,2916.6,2916.5,4.3476]
[1731084730599,0.048438,2916.6,2916.5,4.3376]
[1731084730999,0.048438,2916.6,2916.5,3.55]
[1731084732462,0.048438,2916.6,2916.5,3.61826184]
[1731084732673,0.7997,2918.1,2916.5,3.62826184]
[1731084732829,0.7997,2918.1,2916.9,3.55]
[1731084739280,0.01,2917.9,2917.0,0.06822345]
[1731084739433,0.01,2917.9,2916.9,3.0]
[1731084739976,0.8237,2917.8,2916.9,3.0]
[1731084740340,0.8237,2917.8,2916.5,3.8131]
[1731084740543,0.01,2917.7,2916.5,3.8131]
[1731084740756,0.01,2917.7,2916.5,3.0]
[1731084740962,0.8237,2917.6,2916.5,3.0]
[1731084741657,0.8237,2917.6,2916.4,4.2194962]
[1731084742269,0.8237,2917.6,2916.5,0.61826322]
[1731084742489,0.8237,2917.6,2916.8,4.06947101]
[1731084742701,0.8237,2917.6,2916.9,0.6182488]
[1731084743000,0.8237,2917.6,2916.9,0.55]
[1731084743349,0.8237,2917.6,2916.9,3.55]
[1731084744253,0.8237,2917.6,2917.0,0.06824524]
[1731084744583,0.8237,2917.6,2917.0,0.61824219]
[1731084745084,0.8237,2917.6,2917.0,0.55]
[1731084748564,0.8237,2917.6,2916.9,3.0]
[1731084748759,0.8237,2917.6,2917.0,0.55]
[1731084749296,0.8237,2917.6,2916.9,3.0]
[1731084749459,0.8237,2917.6,2916.6,0.55]
[1731084749658,0.8337,2917.6,2916.4,4.06947101]
[1731084750493,0.7501,2917.5,2916.5,0.06826504]
[1731084750698,0.7501,2917.5,2916.6,0.06826495]
[1731084751186,0.7501,2917.5,2916.4,4.06947101]
[1731084751398,0.01,2917.4,2916.2,3.0]
[1731084751593,0.01,2917.2,2915.8,0.14971762]
[1731084751898,0.01,2917.2,2915.7,3.7706]
[1731084751899,0.8239,2917.1,2915.7,0.7706]
[1731084752408,0.01,2917.0,2915.7,0.7706]
[1731084752697,0.8339,2917.0,2915.7,0.7706]
[1731084752899,0.8339,2917.0,2915.6,4.06947101]
[1731084753379,0.01,2916.5,2915.2,4.06947101]
[1731084753693,4.06947101,2917.4,2915.2,4.06947101]
[1731084753694,0.77,2916.4,2915.2,4.06947101]
[1731084753862,0.77,2916.4,2915.3,0.068328]
[1731084754895,0.77,2916.4,2915.7,0.55]
[1731084755461,0.7661,2916.7,2915.9,0.55]
[1731084755887,0.7661,2916.7,2915.8,0.55]
[1731084756594,0.7661,2916.7,2915.7,0.55]
[1731084756966,0.7761,2916.7,2915.3,3.795]
[1731084757171,0.781,2916.4,2915.3,3.94446355]
[1731084758309,0.781,2916.4,2915.3,3.795]
[1731084758479,0.781,2916.4,2915.4,0.55]
[1731084758827,0.781,2916.4,2915.5,0.06833955]
[1731084759384,0.781,2916.4,2915.4,0.55]
[1731084760596,0.781,2916.4,2915.6,0.55]
[1731084761117,0.781,2916.4,2915.4,0.55]
[1731084761319,0.781,2916.4,2915.3,3.0]
[1731084761531,0.08571284,2917.2,2915.7,3.0]
[1731084761730,0.01,2917.2,2916.4,3.0]
[1731084761889,0.814,2917.1,2916.4,3.0]
[1731084762590,0.814,2917.1,2916.5,0.06828791]
[1731084763118,0.814,2917.1,2916.4,3.0]
[1731084763327,0.814,2917.1,2916.0,4.8762518]
[1731084763521,0.814,2917.1,2916.1,3.61828899]
[1731084763725,0.814,2917.1,2916.4,4.0581518]
[1731084764029,0.814,2917.1,2916.5,0.06828868]
[1731084765123,0.814,2917.1,2916.4,4.0581518]
[1731084765599,0.814,2917.1,2916.5,0.06828922]
[1731084765793,0.814,2917.1,2916.6,0.55]
[1731084766430,0.814,2917.1,2916.5,0.55]
[1731084766838,0.814,2917.1,2916.4,4.0581518]
[1731084768522,0.8076,2916.8,2916.1,3.0]
[1731084769143,0.8076,2916.8,2916.2,0.06831181]
[1731084769701,0.8076,2916.8,2916.4,4.0581518]
[1731084771370,0.8279,2917.2,2916.5,0.06829626]
[1731084771651,0.8279,2917.2,2916.5,0.55]
[1731084773945,0.8279,2917.2,2916.4,4.0581518]
[1731084775518,0.8279,2917.2,2916.5,0.61828306]
[1731084776613,0.8279,2917.2,2916.5,0.55]
[1731084778597,0.8279,2917.2,2916.6,0.06827811]
[1731084778999,0.8279,2917.2,2916.8,4.0581518]
[1731084779203,0.8279,2917.2,2916.9,0.06827514]
[1731084779499,0.8279,2917.2,2916.8,4.0581518]
[1731084779682,0.8279,2917.2,2917.0,0.0682756]
[1731084779885,0.01,2917.7,2916.9,0.55]
[1731084779886,0.7716,2917.6,2916.9,0.55]
[1731084780499,0.7716,2917.6,2917.0,0.06824836]
[1731084780715,0.7716,2917.6,2917.2,4.0581518]
[1731084780918,0.7716,2917.6,2917.3,0.06823436]
[1731084781408,0.7602,2918.1,2917.4,0.0682287]
[1731084781912,0.7602,2918.1,2917.5,0.55]
[1731084782122,0.7849,2917.5,2916.3,0.787]
[1731084782418,0.7849,2917.5,2916.8,3.0]
[1731084783077,0.8051,2917.9,2917.2,3.0]
[1731084783281,0.8051,2917.9,2917.5,3.29446985]
[1731084783514,0.8051,2917.9,2917.6,0.55]
[1731084783889,0.8051,2917.9,2917.5,3.29446985]
[1731084784213,0.8151,2917.9,2917.2,6.29446985]
[1731084784511,0.8151,2917.9,2917.0,3.0]
[1731084784698,0.8051,2917.9,2917.0,3.0]
[1731084785079,0.8051,2917.9,2917.2,3.29446985]
[1731084785611,0.8151,2917.9,2917.2,3.29446985]
[1731084786475,0.8151,2917.9,2917.3,0.06823205]
[1731084786785,0.8151,2917.9,2917.2,3.29446985]
[1731084787812,0.01,2917.7,2916.9,3.29446985]
[1731084788788,0.01,2918.6,2916.6,3.29446985]
[1731084788789,0.01,2917.3,2916.6,3.29446985]
[1731084789407,0.8091,2917.2,2916.7,0.06827584]
[1731084789787,0.8091,2917.2,2916.9,3.29446985]
[1731084789980,0.8091,2917.2,2917.0,0.06826588]
[1731084790783,0.8091,2917.5,2917.1,0.55]
[1731084791470,0.8091,2917.5,2917.2,0.06824534]
[1731084791632,0.7742,2917.8,2917.3,0.55]
[1731084792288,0.01,2917.7,2917.0,3.0]
[1731084793783,0.01,2917.7,2916.9,3.29446985]
[1731084793985,0.01,2917.3,2916.6,3.29446985]
[1731084794786,0.8126,2917.4,2916.7,0.06827575]
[1731084795022,0.8126,2917.4,2916.6,3.29446985]
[1731084795252,0.8126,2917.4,2916.7,3.0]
[1731084795424,0.8126,2917.4,2916.8,0.55]
[1731084795626,0.01,2917.3,2916.7,3.0]
[1731084795945,0.01,2917.3,2916.8,0.0682698]
[1731084796154,0.01,2917.3,2916.8,0.06826986]
[1731084796310,0.01,2917.1,2916.8,0.06826986]
[1731084796513,0.01,2917.3,2916.7,3.0]
[1731084796841,0.01,2917.1,2916.8,0.06827934]
[1731084797648,0.01,2917.1,2916.7,3.0]
[1731084797833,0.01,2917.3,2916.8,0.06827945]
[1731084798036,0.8126,2917.4,2916.9,3.29446985]
[1731084798349,0.8126,2917.4,2917.0,0.06826296]
[1731084798759,0.8126,2917.4,2916.9,3.29446985]
[1731084799051,0.8126,2917.4,2916.5,6.84446985]
[1731084800325,0.8126,2917.4,2916.6,0.06826631]
[1731084800521,0.01,2917.3,2916.5,6.84446985]
[1731084801043,0.8126,2917.4,2916.5,6.84446985]
[1731084801247,0.01,2917.3,2916.5,6.84446985]
[1731084802221,0.8126,2917.4,2916.7,0.55]
[1731084802643,0.8126,2917.4,2916.6,0.55]
[1731084803238,0.01,2917.3,2916.6,0.55]
[1731084803569,0.01,2917.3,2916.5,6.29446985]
[1731084803865,0.01,2917.3,2916.6,0.55]
[1731084806147,0.01,2917.3,2916.7,0.0682717]
[1731084807243,0.01,2917.3,2916.6,0.55]
[1731084809064,0.8126,2917.4,2916.8,3.29446985]
[1731084809236,0.8226,2917.4,2916.8,3.29446985]
[1731084809437,0.01,2917.2,2916.6,3.55]
[1731084810266,0.8226,2917.4,2916.7,0.06827196]
[1731084810442,0.8126,2917.4,2916.7,0.06827196]
[1731084810970,0.01,2917.2,2916.7,0.06827196]
[1731084811174,0.01,2917.2,2916.6,0.55]
[1731084811728,0.01,2917.2,2916.7,3.29446985]
[1731084811959,0.01,2917.2,2916.7,3.36274194]
[1731084812141,0.8226,2917.4,2916.7,3.36274194]
[1731084812339,0.8226,2917.4,2916.7,3.29446985]
[1731084813655,0.8226,2917.4,2916.8,0.06826269]
[1731084813656,0.8126,2917.4,2916.8,0.06826269]
[1731084814863,0.8126,2917.4,2916.8,0.55]
[1731084816373,0.8226,2917.4,2916.6,0.55]
[1731084816536,0.7545,2916.8,2916.5,0.3577691]
[1731084816739,0.01,2916.7,2916.5,0.3577691]
[1731084817042,0.7545,2916.6,2916.5,0.3577691]
[1731084819864,0.7585,2916.5,2914.3,1.43105273]
[1731084820068,0.7585,2916.3,2914.6,3.29446985]
[1731084820262,0.7585,2916.1,2914.7,1.14558637]
[1731084820580,0.01,2915.9,2915.2,3.29446985]
[1731084821173,0.01,2915.9,2915.3,0.55]
[1731084821534,3.0,2916.6,2914.9,3.29446985]
[1731084821535,0.01,2915.7,2914.9,3.29446985]
[1731084821949,0.01,2915.7,2915.0,0.0683824]
[1731084822162,0.01,2915.7,2914.9,3.29446985]
[1731084822873,0.01,2915.7,2915.0,0.55]
[1731084823081,0.08573592,2916.5,2914.7,3.0]
[1731084823082,0.01,2915.4,2914.7,3.0]
[1731084823291,0.01,2915.4,2914.6,3.65244262]
[1731084824849,0.01,2915.4,2914.7,0.55]
[1731084825776,0.8276,2914.9,2914.7,0.06840386]
[1731084825980,0.8276,2914.9,2914.6,0.35797277]
[1731084826666,0.7997,2915.2,2914.6,3.65244262]
[1731084826839,0.7997,2915.2,2914.7,0.06842669]
[1731084827470,0.7997,2915.2,2914.7,0.55]
[1731084827954,0.7755,2915.5,2914.9,3.29446985]
[1731084828278,0.7755,2915.5,2915.0,0.06839681]
[1731084828487,0.7755,2915.8,2915.1,0.06839018]
[1731084828783,0.7755,2915.8,2915.2,0.55]
[1731084828945,0.7755,2915.8,2915.3,0.06837837]
[1731084830185,0.01,2916.0,2915.5,3.29446985]
[1731084830684,0.01,2916.0,2915.4,0.55]
[1731084830852,0.01,2916.0,2915.1,0.55]
[1731084833109,0.01,2915.7,2914.9,6.29446985]
[1731084833399,0.7755,2915.6,2915.0,0.55]
[1731084835904,0.7755,2915.6,2915.1,0.0683903]
[1731084836215,0.01,2915.9,2915.2,3.84446985]
[1731084836216,0.8053,2915.9,2915.2,3.84446985]
[1731084837417,0.01,2916.0,2914.7,0.35797574]
[1731084837418,0.01,2915.1,2914.8,0.0683694]
[1731084837705,0.01,2915.1,2914.8,0.06842275]
[1731084839196,0.01,2915.1,2914.7,0.35797574]
[1731084840912,0.7889,2915.2,2914.7,0.35797574]
[1731084841081,0.7889,2915.2,2914.8,0.06842362]
[1731084841590,0.01,2915.5,2914.9,3.29446985]
[1731084841796,0.8226,2915.5,2915.0,0.06840617]
[1731084841993,0.8226,2915.5,2914.9,3.29446985]
[1731084841994,0.8126,2915.5,2915.1,0.55]
[1731084842194,0.01,2915.7,2914.9,4.06106985]
[1731084842195,0.01,2915.7,2915.3,0.55]
[1731084842494,0.01,2915.7,2915.1,0.55]
[1731084843304,0.01,2915.7,2914.9,0.7666]
[1731084843615,0.01,2915.7,2915.0,0.55]
[1731084844280,0.01,2915.7,2915.1,0.06838864]
[1731084844484,0.01,2915.7,2915.0,0.55]
[1731084845320,0.8126,2915.8,2915.1,0.06838028]
[1731084845529,0.8126,2915.8,2915.2,4.61161702]
[1731084845682,0.8126,2915.8,2915.3,0.06837756]
[1731084845883,0.01,2916.1,2915.4,0.55]
[1731084846084,0.01,2916.1,2915.5,0.06835146]
[1731084846385,0.01,2916.1,2915.6,0.55]
[1731084846585,0.01,2916.1,2915.7,0.06834873]
[1731084849435,0.7607,2916.5,2916.0,4.06161702]
[1731084849642,0.7607,2916.8,2916.1,4.37231137]
[1731084849945,0.7707,2917.1,2916.1,4.37231137]
[1731084850098,0.7707,2917.1,2916.1,4.304]
[1731084850298,0.7707,2917.1,2916.4,4.06161702]
[1731084850535,0.7707,2917.1,2916.5,0.55]
[1731084851132,0.7607,2917.1,2916.5,0.55]
[1731084851337,0.7607,2917.1,2916.6,0.06828324]
[1731084851582,0.7607,2917.1,2916.7,0.55]
[1731084852041,0.7607,2917.1,2916.5,0.55]
[1731084853200,0.7707,2917.1,2916.5,0.55]
[1731084855344,0.7956,2916.5,2915.2,0.823]
[1731084855650,0.7956,2916.5,2915.7,4.06161702]
[1731084855805,0.7956,2916.5,2915.8,0.89132269]
[1731084856564,0.01,2917.5,2915.8,0.89132269]
[1731084856565,0.7944,2916.9,2916.2,0.55]
[1731084856721,0.7944,2916.9,2916.2,3.55]
[1731084857834,0.01,2916.8,2916.2,0.55]
[1731084860211,0.7944,2916.9,2916.2,0.55]
[1731084860412,0.01,2917.9,2916.2,0.55]
[1731084860413,0.7715,2917.3,2916.6,0.55]
[1731084860833,0.01,2914.1,2913.9,4.1420448]
[1731084861058,0.01,2914.1,2913.8,0.8276]
[1731084861578,0.00388771,2914.7,2913.1,0.01]
[1731084861730,0.00388771,2914.5,2912.9,0.01611229]
[1731084861934,0.08740947,2914.5,2912.9,0.01611229]
[1731084862263,0.7925,2914.4,2913.3,0.00611229]
[1731084862430,0.08352176,2914.3,2912.9,0.01611229]
[1731084862633,0.08352176,2914.3,2913.1,0.00611229]
[1731084865361,0.08352176,2914.3,2913.5,0.00611229]
[1731084865562,0.7925,2914.4,2914.0,11.0]
[1731084866423,0.7925,2914.4,2914.0,10.0]
[1731084868665,0.78659906,2914.4,2914.0,10.0]
[1731084870193,0.08352176,2914.3,2914.0,10.0]
[1731084875523,0.78659906,2914.4,2914.0,10.0]
[1731084877034,0.7865,2914.2,2914.0,10.0]
[1731084877328,0.87002176,2914.1,2914.0,10.0]
[1731084877885,0.7865,2913.9,2912.4,0.01611229]
[1731084878200,0.7865,2913.9,2912.2,4.08012017]
[1731084878201,0.7865,2913.6,2912.2,0.7744]
[1731084878528,0.7865,2913.4,2912.2,0.7744]
[1731084878685,0.08352176,2913.3,2912.2,0.7744]
[1731084879028,0.08352176,2913.3,2912.0,0.00611229]
[1731084879323,0.08352176,2913.3,2912.1,0.33118325]
[1731084879526,0.08352176,2913.3,2912.0,0.00611229]
[1731084880428,0.08352176,2913.3,2911.9,0.7514]
[1731084880590,0.7865,2913.2,2911.9,0.7514]
[1731084880791,0.7865,2913.0,2911.6,0.00611229]
[1731084881204,0.08234971,2912.9,2911.6,0.00611229]
[1731084881404,0.08234971,2912.9,2911.6,0.01611229]
[1731084882530,0.7865,2912.8,2911.6,0.01611229]
[1731084882769,0.7865,2912.8,2911.4,0.8089]
[1731084883005,0.00388771,2912.5,2911.0,0.81351229]
[1731084883148,0.08234971,2912.5,2911.2,0.01611229]
[1731084883334,0.08234971,2912.5,2911.4,0.00611229]
[1731084883534,0.08234971,2912.5,2911.5,0.41452049]
[1731084884989,0.08234971,2912.5,2911.6,0.06868122]
[1731084885276,0.08234971,2912.5,2911.5,0.41452049]
[1731084885457,0.7865,2912.6,2911.8,0.00611229]
[1731084886358,0.7865,2913.2,2912.0,0.00611229]
[1731084886671,0.08234971,2913.1,2912.0,0.00611229]
[1731084886876,0.08234971,2913.1,2911.8,0.01611229]
[1731084887163,0.7738,2913.0,2911.9,0.48767216]
[1731084887334,0.08234971,2912.9,2911.9,0.48767216]
[1731084890577,0.08234971,2912.9,2912.0,0.06867172]
[1731084891065,0.08234971,2912.9,2911.9,0.48767216]
[1731084891233,0.7738,2913.0,2912.1,0.00611229]
[1731084893134,0.7738,2913.0,2911.9,0.48767216]
[1731084893334,0.08234971,2912.9,2911.9,0.48767216]
[1731084894945,0.08234971,2912.9,2912.0,0.06867109]
[1731084895264,0.7738,2913.0,2912.0,0.00611229]
[1731084895564,0.7738,2913.0,2912.1,0.00611229]
[1731084895863,0.7738,2913.0,2912.1,0.01611229]
[1731084897852,0.7738,2913.0,2912.4,0.7614]
[1731084899680,0.7738,2913.0,2912.5,0.40736721]
[1731084900989,0.7738,2913.0,2911.9,0.48767216]
[1731084901290,0.08234971,2912.9,2911.9,0.48767216]
[1731084901577,0.763,2912.8,2911.9,0.49378445]
[1731084902343,0.763,2912.8,2911.9,0.48767216]
[1731084904090,0.763,2912.8,2912.0,0.0686719]
[1731084904378,0.763,2912.8,2911.9,0.48767216]
[1731084904941,0.7865,2912.6,2911.3,0.01611229]
[1731084905143,0.7865,2912.4,2911.5,0.00611229]
[1731084905379,0.08234971,2912.3,2911.5,0.01611229]
[1731084905781,0.7865,2912.4,2911.5,0.01611229]
[1731084905985,0.7865,2912.4,2911.6,0.33222721]
[1731084907378,0.84764971,2912.3,2911.1,0.01611229]
[1731084907861,0.84764971,2912.3,2910.9,3.31615982]
[1731084908179,0.84764971,2912.3,2910.9,3.30615982]
[1731084908702,0.84764971,2912.3,2911.1,0.01611229]
[1731084908904,0.7653,2912.3,2911.5,3.31227211]
[1731084910669,0.7653,2912.3,2911.3,3.55]
[1731084911058,0.08234971,2912.2,2911.2,3.31615982]
[1731084911357,0.08234971,2912.2,2911.2,0.01]
[1731084911553,0.7641,2912.1,2911.2,0.01]
[1731084911805,0.08234971,2912.0,2911.2,0.01]
[1731084912025,0.08234971,2912.0,2911.1,0.33222721]
[1731084912026,0.7641,2911.9,2911.1,0.33222721]
[1731084912321,0.7641,2911.7,2911.1,0.33222721]
[1731084912716,0.7641,2911.7,2910.8,0.00611229]
[1731084912890,0.7641,2911.7,2910.8,0.01611229]
[1731084913411,0.7641,2911.7,2910.8,0.00611229]
[1731084913927,0.7641,2911.7,2910.8,0.0848096]
[1731084914219,0.7641,2911.7,2910.8,0.01611229]
[1731084914419,0.7641,2911.7,2910.8,0.4291795]
[1731084915014,0.7641,2911.7,2910.9,0.06869733]
[1731084915198,0.7641,2911.7,2910.8,0.4291795]
[1731084915409,0.7641,2911.7,2910.8,0.4191795]
[1731084915731,0.7641,2911.7,2910.8,0.4291795]
[1731084916095,0.7641,2911.7,2910.8,0.4191795]
[1731084917820,0.7641,2911.7,2910.8,0.4291795]
[1731084918130,0.7641,2911.7,2910.9,0.06869739]
[1731084918339,0.7641,2911.7,2910.9,3.30615982]
[1731084918499,0.7641,2911.7,2911.0,0.37353393]
[1731084920646,0.7641,2911.7,2910.9,3.30615982]
[1731084920824,0.7641,2911.7,2910.8,0.00611229]
[1731084922553,0.7641,2911.7,2910.8,0.01611229]
[1731084922719,0.7641,2911.7,2910.9,3.30615982]
[1731084922927,0.7641,2911.7,2911.0,0.06869747]
[1731084923136,0.7641,2911.7,2910.8,0.00611229]
[1731084923819,0.7641,2911.7,2910.8,3.31227211]
[1731084924146,0.7641,2911.7,2910.9,0.33222721]
[1731084926457,0.7641,2911.7,2911.1,3.30615982]
[1731084927576,0.7641,2911.7,2910.9,0.33222721]
[1731084927802,0.7641,2911.7,2911.0,0.06869748]
[1731084927946,0.7641,2911.7,2911.1,3.30615982]
[1731084928147,0.7641,2911.7,2911.1,3.67060975]
[1731084929282,0.7641,2911.7,2911.3,0.00611229]
[1731084929947,0.7641,2911.7,2911.1,3.68060975]
[1731084930196,0.7641,2911.7,2911.1,3.67060975]
[1731084930351,0.7641,2911.7,2911.1,0.36444993]
[1731084930549,0.7641,2911.7,2910.9,0.01]
[1731084930756,0.7641,2911.7,2911.1,0.01]
[1731084931285,0.7641,2911.7,2910.8,0.00611229]
[1731084931488,0.7641,2911.7,2911.0,0.01]
[1731084931859,0.7641,2911.7,2911.1,0.01]
[1731084932264,0.7641,2911.7,2911.1,0.01611229]
[1731084932585,0.7641,2911.7,2911.2,0.33222721]
[1731084933994,0.7574,2912.4,2911.3,3.38096175]
[1731084934295,0.7574,2912.4,2911.6,0.00611229]
[1731084934490,0.7574,2912.4,2911.3,3.38484946]
[1731084934491,0.7574,2912.4,2911.4,0.00611229]
[1731084934652,0.7574,2912.4,2911.3,3.31615982]
[1731084934653,0.7574,2912.4,2911.5,0.33222721]
[1731084934856,0.08234971,2912.7,2911.3,3.31615982]
[1731084934857,0.7865,2912.2,2911.3,3.30615982]
[1731084935162,0.08234971,2912.1,2911.4,0.01611229]
[1731084935487,0.7865,2912.2,2911.4,0.01611229]
[1731084937189,0.7865,2912.2,2911.3,3.30615982]
[1731084937760,0.7865,2912.2,2911.4,0.00611229]
[1731084938078,0.7865,2912.2,2911.5,0.33122721]
[1731084939325,0.78649994,2912.2,2911.5,0.33122721]
[1731084941370,0.78649994,2912.2,2910.4,0.35844846]
[1731084941371,0.08234971,2912.1,2910.7,0.00611229]
[1731084941569,0.08234971,2912.1,2910.9,0.00611229]